bitfinex-derivatives/quotes_BTCF0:USTF0_20251011
["timestamp","ask_amount","ask_price","bid_price","bid_amount"]
[1760162296229,0.1264428,112550.0,112540.0,0.50724004]
[1760162296425,0.15048968,112550.0,112540.0,0.49466004]
[1760162296736,0.1264428,112550.0,112540.0,0.49466004]
[1760162300634,0.1264428,112550.0,112540.0,0.13386004]
[1760162302429,0.1504792,112550.0,112540.0,0.13386004]
[1760162303735,0.15047844,112550.0,112540.0,0.13386004]
[1760162305629,0.51127844,112550.0,112540.0,0.13386004]
[1760162307240,0.15047844,112550.0,112540.0,0.13386004]
[1760162309136,0.55047844,112550.0,112540.0,0.13386004]
[1760162309335,0.91127844,112550.0,112540.0,0.11136004]
[1760162315542,1.32168045,112550.0,112540.0,0.11136004]
[1760162315846,1.35328051,112550.0,112540.0,0.11136004]
[1760162316050,1.32168045,112550.0,112540.0,0.11136004]
[1760162317038,0.1025642,112520.0,112510.0,0.15]
[1760162317244,0.92085856,112520.0,112510.0,0.07139]
[1760162317447,0.92085269,112520.0,112510.0,0.07139]
[1760162318749,0.92085269,112520.0,112510.0,0.05]
[1760162318947,0.92085269,112520.0,112510.0,0.07139]
[1760162320143,0.81825943,112520.0,112510.0,0.08422]
[1760162320348,0.02414742,112520.0,112510.0,0.84502]
[1760162320538,0.52209391,112530.0,112520.0,0.03422]
[1760162320738,0.54623713,112530.0,112520.0,0.43502]
[1760162321141,0.088792,112510.0,112500.0,0.37363]
[1760162321447,0.49919401,112510.0,112500.0,0.516]
[1760162324245,0.088792,112510.0,112500.0,0.516]
[1760162324548,0.088792,112510.0,112500.0,0.916]
[1760162325247,0.49919401,112510.0,112500.0,0.916]
[1760162329151,0.088792,112510.0,112500.0,0.916]
[1760162332449,0.0887876,112520.0,112510.0,0.03576]
[1760162332655,0.1108176,112520.0,112510.0,0.16576]
[1760162332954,0.49918961,112520.0,112510.0,0.16576]
[1760162333154,0.52121961,112520.0,112510.0,0.16576]
[1760162334758,0.43243201,112520.0,112510.0,0.16576]
[1760162335955,0.41040201,112530.0,112520.0,0.01321]
[1760162336150,0.45659142,112530.0,112520.0,0.15614]
[1760162336354,0.45659142,112530.0,112520.0,0.51694]
[1760162336857,0.43456142,112530.0,112520.0,0.51694]
[1760162337056,0.41040201,112530.0,112520.0,0.51694]
[1760162337559,0.44623201,112530.0,112520.0,0.51694]
[1760162337854,0.47039835,112530.0,112520.0,0.15614]
[1760162338059,0.91997465,112530.0,112520.0,0.14293]
[1760162340060,0.91997465,112530.0,112520.0,0.15614]
[1760162340560,0.91997465,112530.0,112520.0,0.14293]
[1760162340862,1.31997465,112530.0,112520.0,0.14293]
[1760162341256,1.31997465,112530.0,112520.0,0.12]
[1760162342063,1.31997465,112530.0,112520.0,0.14293]
[1760162342263,0.03583,112510.0,112500.0,0.02293]
[1760162342465,0.89582411,112510.0,112500.0,0.04293]
[1760162343268,1.68081567,112510.0,112500.0,0.02]
[1760162343767,0.1246458,112480.0,112470.0,0.02293]
[1760162344067,0.53504781,112480.0,112470.0,0.05293]
[1760162344868,0.89584781,112480.0,112470.0,0.05293]
[1760162345078,0.92002581,112480.0,112470.0,0.05293]
[1760162345272,0.92002581,112480.0,112470.0,0.05393]
[1760162345672,0.92002581,112480.0,112470.0,0.05493]
[1760162346578,1.32002581,112480.0,112470.0,0.05493]
[1760162346766,0.9096238,112480.0,112470.0,0.05493]
[1760162347266,0.9096238,112480.0,112470.0,0.032]
[1760162347467,0.9096238,112480.0,112470.0,0.002]
[1760162347468,1.1747238,112480.0,112470.0,0.002]
[1760162348175,0.1108736,112450.0,112440.0,0.02293]
[1760162348375,0.89587561,112450.0,112440.0,0.15293]
[1760162349180,0.92013644,112450.0,112440.0,0.15293]
[1760162349373,0.92013644,112450.0,112440.0,0.15393]
[1760162350578,0.92013644,112450.0,112440.0,0.15493]
[1760162351375,0.43466284,112450.0,112440.0,0.56829]
[1760162351575,0.38374,112460.0,112450.0,0.03619]
[1760162351781,0.38499675,112460.0,112450.0,0.16619]
[1760162352180,0.02419675,112460.0,112450.0,0.16619]
[1760162352381,0.02419675,112460.0,112450.0,0.52699]
[1760162352881,0.43459876,112460.0,112450.0,0.52699]
[1760162353073,0.41040201,112460.0,112450.0,0.52699]
[1760162353272,0.41140201,112460.0,112450.0,0.52699]
[1760162353578,0.41240201,112460.0,112450.0,0.52699]
[1760162354280,0.002,112460.0,112450.0,1.0158295]
[1760162354877,0.41040201,112480.0,112470.0,0.03532]
[1760162355082,0.43457387,112480.0,112470.0,0.50612]
[1760162356477,0.43657387,112480.0,112470.0,0.50612]
[1760162358980,0.43657187,112480.0,112470.0,0.50612]
[1760162359184,0.41240201,112480.0,112470.0,0.50612]
[1760162362384,0.002,112480.0,112470.0,0.50612]
[1760162363085,0.02494,112480.0,112470.0,0.50612]
[1760162363282,0.002,112480.0,112470.0,0.50612]
[1760162363485,0.002,112480.0,112470.0,0.5949437]
[1760162364089,0.002,112480.0,112470.0,0.50612]
[1760162367086,0.44849201,112480.0,112470.0,0.50612]
[1760162367588,0.47271993,112480.0,112470.0,0.50612]
[1760162368086,0.44849201,112480.0,112470.0,0.50612]
[1760162368283,0.96154045,112480.0,112470.0,0.49363]
[1760162368585,1.32234045,112480.0,112470.0,0.13283]
[1760162371890,0.92234045,112480.0,112470.0,0.13283]
[1760162373493,1.32234045,112480.0,112470.0,0.13283]
[1760162373693,1.32234045,112480.0,112470.0,0.11]
[1760162374285,1.32234045,112480.0,112470.0,0.13283]
[1760162374794,0.91193844,112480.0,112470.0,0.13283]
[1760162375196,0.91193844,112480.0,112470.0,0.11]
[1760162375594,1.26179427,112480.0,112470.0,0.11]
[1760162377297,1.26179427,112480.0,112470.0,0.13283]
[1760162378089,0.86179427,112480.0,112470.0,0.13283]
[1760162378798,0.51193844,112480.0,112470.0,0.13283]
[1760162378996,0.86179427,112480.0,112470.0,0.13283]
[1760162384496,0.89339433,112480.0,112470.0,0.13283]
[1760162387204,0.86179427,112480.0,112470.0,0.13283]
[1760162390306,0.86179427,112480.0,112470.0,0.11]
[1760162390507,0.86179427,112480.0,112470.0,0.13217]
[1760162400916,0.38703264,112480.0,112470.0,0.54466]
[1760162401115,0.02623264,112480.0,112470.0,0.9942837]
[1760162402916,0.02623264,112480.0,112470.0,0.90546]
[1760162403313,0.02623264,112480.0,112470.0,0.9942837]
[1760162404016,0.02623264,112480.0,112470.0,0.50546]
[1760162404416,0.51142854,112480.0,112470.0,0.13217]
[1760162404818,0.49831854,112480.0,112470.0,0.14466]
[1760162405016,0.13751854,112480.0,112470.0,0.50546]
[1760162405719,0.13751854,112480.0,112470.0,0.14466]
[1760162405920,0.11504854,112480.0,112470.0,0.14466]
[1760162406322,0.13751854,112480.0,112470.0,0.14466]
[1760162406815,0.02623264,112480.0,112470.0,0.6334837]
[1760162407020,0.02623264,112480.0,112470.0,0.90546]
[1760162407221,0.04870264,112480.0,112470.0,0.14466]
[1760162407423,0.02623264,112480.0,112470.0,0.14466]
[1760162408825,0.29133264,112480.0,112470.0,0.90546]
[1760162409422,0.29133264,112480.0,112470.0,0.9942837]
[1760162409618,0.29133264,112480.0,112470.0,0.90546]
[1760162410323,0.29033264,112480.0,112470.0,0.90546]
[1760162410522,0.28933264,112480.0,112470.0,0.90546]
[1760162410919,0.28933264,112480.0,112470.0,0.9942837]
[1760162412926,0.2651,112480.0,112470.0,0.9942837]
[1760162413120,0.28957914,112480.0,112470.0,0.9942837]
[1760162413425,0.28957811,112480.0,112470.0,0.9942837]
[1760162414323,0.02447811,112480.0,112470.0,0.9942837]
[1760162414526,0.86728909,112510.0,112500.0,0.03537]
[1760162414730,0.89176631,112510.0,112500.0,0.15537]
[1760162415230,0.02447722,112510.0,112500.0,0.15537]
[1760162415622,0.02547722,112510.0,112500.0,0.15537]
[1760162416423,0.001,112510.0,112500.0,0.15537]
[1760162416928,0.1276322,112510.0,112500.0,0.15537]
[1760162417125,0.51289482,112510.0,112500.0,0.15537]
[1760162417326,0.51189482,112510.0,112500.0,0.15537]
[1760162417526,0.51289482,112510.0,112500.0,0.15537]
[1760162418225,0.51189482,112510.0,112500.0,0.15537]
[1760162418424,0.51289482,112510.0,112500.0,0.14288]
[1760162428941,0.91289482,112510.0,112500.0,0.14288]
[1760162429243,0.91289482,112510.0,112500.0,0.12]
[1760162430741,0.91287964,112510.0,112500.0,0.12]
[1760162431442,0.91287964,112510.0,112500.0,0.14288]
[1760162433143,0.51287964,112510.0,112500.0,0.14288]
[1760162435645,0.51187964,112510.0,112500.0,0.14288]
[1760162435845,0.51287964,112510.0,112500.0,0.14288]
[1760162436545,0.49912964,112510.0,112500.0,0.15537]
[1760162437545,0.90971969,112510.0,112500.0,0.15537]
[1760162437745,0.90871969,112510.0,112500.0,0.15537]
[1760162437946,0.46012749,112510.0,112500.0,0.15537]
[1760162438146,0.002,112510.0,112500.0,1.00497]
[1760162438649,0.02675043,112510.0,112500.0,0.91617]
[1760162438848,0.43734048,112510.0,112500.0,0.91617]
[1760162439147,0.43734048,112510.0,112500.0,0.55537]
[1760162439549,0.02675043,112510.0,112500.0,0.55537]
[1760162439751,0.43734048,112510.0,112500.0,0.55537]
[1760162441150,0.46043048,112510.0,112500.0,0.55537]
[1760162441449,0.02675043,112510.0,112500.0,1.00497]
[1760162441752,0.02675043,112510.0,112500.0,0.55537]
[1760162442351,0.02675043,112510.0,112500.0,0.15537]
[1760162442545,0.02675043,112510.0,112500.0,0.51617]
[1760162443653,0.02675043,112510.0,112500.0,0.15537]
[1760162445659,0.02675043,112510.0,112500.0,0.15705834]
[1760162445861,0.02575043,112510.0,112500.0,0.16952828]
[1760162446560,0.02475043,112510.0,112500.0,0.53032828]
[1760162446960,0.04799043,112510.0,112500.0,0.16952828]
[1760162447656,0.43534048,112510.0,112500.0,0.16952828]
[1760162447962,0.45858048,112510.0,112500.0,0.16952828]
[1760162448161,0.45958048,112510.0,112500.0,0.16952828]
[1760162448561,0.45958048,112510.0,112500.0,0.53032828]
[1760162448758,0.46058048,112510.0,112500.0,0.53032828]
[1760162449062,0.46058048,112510.0,112500.0,0.16952828]
[1760162450760,0.46058048,112510.0,112500.0,0.53032828]
[1760162451161,0.43734048,112510.0,112500.0,0.53032828]
[1760162451558,0.43734048,112510.0,112500.0,0.61912838]
[1760162451962,0.02675043,112510.0,112500.0,0.61912838]
[1760162452362,0.43734048,112510.0,112500.0,0.61912838]
[1760162453057,0.02675043,112510.0,112500.0,0.61912838]
[1760162455061,0.43734048,112510.0,112500.0,0.61912838]
[1760162455565,0.02675043,112510.0,112500.0,1.01912838]
[1760162456067,0.02236,112540.0,112530.0,0.03532]
[1760162456269,0.52171855,112540.0,112530.0,0.15532]
[1760162456468,0.54651175,112540.0,112530.0,0.15532]
[1760162456669,0.54651175,112540.0,112530.0,0.15700834]
[1760162457069,0.54651175,112540.0,112530.0,0.16947828]
[1760162457271,0.54851175,112540.0,112530.0,0.16947828]
[1760162457564,0.45974325,112540.0,112530.0,0.16947828]
[1760162458071,0.46074325,112540.0,112530.0,0.16947828]
[1760162458667,0.92307175,112540.0,112530.0,0.15611828]
[1760162459869,0.83430325,112540.0,112530.0,0.15611828]
[1760162460169,0.82154325,112540.0,112530.0,0.16947828]
[1760162460871,0.46074325,112540.0,112530.0,0.16947828]
[1760162461075,0.46074325,112540.0,112530.0,0.53027828]
[1760162461272,0.0277932,112540.0,112530.0,0.53027828]
[1760162461869,0.46074325,112540.0,112530.0,0.53027828]
[1760162462081,0.46074325,112540.0,112530.0,0.16947828]
[1760162462871,0.46073269,112540.0,112530.0,0.16947828]
[1760162463072,0.92306119,112540.0,112530.0,0.15611828]
[1760162463566,0.47349269,112540.0,112530.0,0.15611828]
[1760162463772,0.83429269,112540.0,112530.0,0.15611828]
[1760162465275,0.92306119,112540.0,112530.0,0.15611828]
[1760162466473,0.83429269,112540.0,112530.0,0.15611828]
[1760162466674,0.92306119,112540.0,112530.0,0.15611828]
[1760162466869,0.83429269,112540.0,112530.0,0.16947828]
[1760162468078,0.92306119,112540.0,112530.0,0.15611828]
[1760162468576,1.32306119,112540.0,112530.0,0.15611828]
[1760162468869,1.32306119,112540.0,112530.0,0.13415828]
[1760162468870,1.35466125,112540.0,112530.0,0.13415828]
[1760162471172,1.3703427,112540.0,112530.0,0.01215828]
[1760162471768,0.1908553,112530.0,112480.0,0.37416]
[1760162471974,0.43306005,112490.0,112480.0,0.5956138]
[1760162472374,0.89596795,112490.0,112480.0,0.13264]
[1760162473780,0.4853779,112490.0,112480.0,0.13264]
[1760162474076,0.89596795,112490.0,112480.0,0.14619]
[1760162474681,0.79386005,112490.0,112480.0,0.14619]
[1760162476076,0.88266795,112490.0,112480.0,0.14619]
[1760162478479,0.88366795,112490.0,112480.0,0.14619]
[1760162479085,0.88466795,112490.0,112480.0,0.14619]
[1760162481486,0.89796795,112490.0,112480.0,0.13264]
[1760162481685,1.29796795,112490.0,112480.0,0.13264]
[1760162483290,1.32282023,112490.0,112480.0,0.13264]
[1760162485591,1.32282023,112490.0,112480.0,0.11]
[1760162485889,1.32282023,112490.0,112480.0,0.13264]
[1760162489291,1.28466795,112490.0,112480.0,0.14619]
[1760162489492,1.30949219,112490.0,112480.0,0.14619]
[1760162489693,1.32279219,112490.0,112480.0,0.13264]
[1760162489993,1.29796795,112490.0,112480.0,0.13264]
[1760162491194,1.32279944,112490.0,112480.0,0.13264]
[1760162493895,1.32279944,112490.0,112480.0,0.14619]
[1760162494097,0.90949944,112490.0,112480.0,0.14619]
[1760162494494,0.41259005,112490.0,112480.0,0.14619]
[1760162494894,0.88466795,112490.0,112480.0,0.14619]
[1760162495198,0.90952838,112490.0,112480.0,0.14619]
[1760162499399,0.92282838,112490.0,112480.0,0.14619]
[1760162499602,0.8619562,112490.0,112480.0,0.14619]
[1760162501301,0.8619562,112490.0,112480.0,0.13264]
[1760162502300,0.8619562,112490.0,112480.0,0.11]
[1760162502800,0.8619562,112490.0,112480.0,0.1315]
[1760162504000,1.2619562,112490.0,112480.0,0.1315]
[1760162504204,1.2619562,112490.0,112480.0,0.11]
[1760162504504,1.2619562,112490.0,112480.0,0.1315]
[1760162506104,0.8619562,112490.0,112480.0,0.14517]
[1760162506303,0.8486562,112490.0,112480.0,0.14517]
[1760162507304,0.7373783,112490.0,112480.0,0.14517]
[1760162509106,0.8261862,112490.0,112480.0,0.14517]
[1760162509506,0.02686043,112490.0,112480.0,0.6339858]
[1760162509699,0.02686043,112490.0,112480.0,0.9947858]
[1760162510906,0.83113519,112520.0,112500.0,0.03131]
[1760162511210,0.85319519,112520.0,112510.0,0.02849]
[1760162511410,0.83113519,112520.0,112510.0,0.11849]
[1760162511612,0.85319519,112520.0,112510.0,0.11849]
[1760162511802,0.74234739,112520.0,112510.0,0.11849]
[1760162512003,0.03182952,112530.0,112520.0,0.1234743]
[1760162512310,0.8783985,112540.0,112520.0,0.56469]
[1760162512509,0.84656898,112540.0,112530.0,0.02912]
[1760162512805,0.88128898,112540.0,112530.0,0.05165]
[1760162513209,0.91314808,112540.0,112530.0,0.05165]
[1760162513406,0.86586657,112540.0,112530.0,0.05165]
[1760162513607,0.77809697,112540.0,112530.0,0.05165]
[1760162514311,0.86686547,112540.0,112530.0,0.05165]
[1760162514810,0.86786547,112540.0,112530.0,0.05165]
[1760162521316,0.5054876,112540.0,112530.0,0.05912]
[1760162521916,0.5181476,112540.0,112530.0,0.05165]
[1760162522921,0.54320418,112540.0,112530.0,0.05165]
[1760162523116,0.94320418,112540.0,112530.0,0.03]
[1760162523521,0.53054418,112540.0,112530.0,0.06469]
[1760162524221,0.49868508,112540.0,112530.0,0.06469]
[1760162524621,0.40991658,112540.0,112530.0,0.06469]
[1760162524921,0.49868508,112540.0,112530.0,0.06469]
[1760162525318,0.49768508,112540.0,112530.0,0.06469]
[1760162525519,0.49868508,112540.0,112530.0,0.06469]
[1760162525820,0.49768508,112540.0,112530.0,0.06469]
[1760162526120,0.49868508,112540.0,112530.0,0.06469]
[1760162526920,0.47662508,112540.0,112530.0,0.46469]
[1760162527323,0.02705658,112540.0,112530.0,0.82549]
[1760162527920,0.02705658,112540.0,112530.0,0.9142664]
[1760162528218,0.0318591,112560.0,112550.0,0.1137206]
[1760162528419,0.0318591,112560.0,112550.0,0.2537206]
[1760162528615,0.0318591,112570.0,112560.0,0.00747]
[1760162528814,0.0318591,112570.0,112560.0,0.52992]
[1760162529018,0.0318591,112570.0,112560.0,1.0186727]
[1760162529624,0.04728151,112580.0,112570.0,0.0913248]
[1760162529825,0.3608,112590.0,112570.0,0.5821248]
[1760162530021,0.3608,112590.0,112570.0,0.9821248]
[1760162530225,0.37346,112590.0,112570.0,0.9821248]
[1760162530623,0.01266,112590.0,112570.0,0.9821248]
[1760162530927,0.01266,112590.0,112580.0,0.36338]
[1760162531227,0.37346,112600.0,112580.0,0.49338]
[1760162531628,0.4621816,112600.0,112580.0,0.49338]
[1760162531828,0.001,112590.0,112580.0,0.49338]
[1760162532023,0.01466,112590.0,112580.0,0.49338]
[1760162532724,0.01366,112590.0,112580.0,0.49338]
[1760162533226,0.37446,112600.0,112580.0,0.49338]
[1760162533428,0.37446,112600.0,112580.0,0.5821154]
[1760162533625,0.01366,112600.0,112590.0,0.36338]
[1760162533829,0.01366,112600.0,112590.0,0.47338]
[1760162534130,0.01266,112610.0,112590.0,0.9621091]
[1760162534430,0.001,112600.0,112590.0,0.5621091]
[1760162534627,0.001,112600.0,112590.0,0.47338]
[1760162535425,0.003,112600.0,112590.0,0.47338]
[1760162537528,0.003,112600.0,112590.0,0.11258]
[1760162537833,0.01666,112600.0,112590.0,0.11258]
[1760162540229,0.1282012,112600.0,112590.0,0.11258]
[1760162540832,0.4890012,112600.0,112590.0,0.11258]
[1760162542135,0.40028,112600.0,112590.0,0.11258]
[1760162542938,0.37746,112600.0,112590.0,0.11258]
[1760162543537,0.40028,112600.0,112590.0,0.11258]
[1760162544537,0.4890012,112600.0,112590.0,0.11258]
[1760162545942,0.4890012,112600.0,112590.0,0.11]
[1760162546140,0.4890012,112600.0,112590.0,0.11258]
[1760162548140,0.03948,112600.0,112590.0,0.11258]
[1760162548746,0.40028,112600.0,112590.0,0.11258]
[1760162548945,0.03948,112600.0,112590.0,0.11258]
[1760162549145,0.01666,112600.0,112590.0,0.11258]
[1760162550435,0.003,112600.0,112590.0,0.11258]
[1760162550636,0.003,112600.0,112590.0,0.562109]
[1760162551348,0.003,112600.0,112590.0,0.962109]
[1760162552249,0.001,112600.0,112590.0,0.962109]
[1760162552450,0.01366,112630.0,112610.0,0.0887113]
[1760162552451,0.39728,112630.0,112610.0,0.0887113]
[1760162552645,0.39721117,112630.0,112620.0,0.0887054]
[1760162552958,0.02275117,112630.0,112620.0,0.5695054]
[1760162553150,0.02275117,112630.0,112620.0,0.9695054]
[1760162553345,0.01366,112650.0,112630.0,0.0886958]
[1760162553651,0.01366,112650.0,112640.0,0.4494897]
[1760162553652,0.02275777,112650.0,112640.0,0.4494897]
[1760162553850,0.02275777,112650.0,112640.0,0.5694897]
[1760162554151,0.02275777,112650.0,112640.0,0.9694897]
[1760162554848,0.02375777,112650.0,112640.0,0.9694897]
[1760162555554,0.01466,112650.0,112640.0,0.12]
[1760162555748,0.39828,112650.0,112640.0,0.12]
[1760162556251,0.37646,112650.0,112640.0,0.12]
[1760162556458,0.002,112650.0,112640.0,0.8808]
[1760162556649,0.002,112650.0,112640.0,0.9694977]
[1760162556850,0.002,112650.0,112640.0,0.8808]
[1760162557050,0.002,112650.0,112640.0,0.52]
[1760162557358,0.01366,112650.0,112640.0,0.52]
[1760162557553,0.39728,112650.0,112640.0,0.52]
[1760162558460,0.37446,112660.0,112640.0,0.52]
[1760162558653,0.37446,112660.0,112640.0,0.12]
[1760162558654,0.39696403,112660.0,112640.0,0.12]
[1760162558855,0.01366,112650.0,112640.0,0.12]
[1760162559362,0.37446,112660.0,112640.0,0.12]
[1760162559657,0.41979408,112660.0,112640.0,0.5694971]
[1760162559855,0.01366,112650.0,112640.0,0.4808]
[1760162561359,0.37446,112660.0,112640.0,0.8808]
[1760162561552,0.37446,112670.0,112660.0,0.0886822]
[1760162561757,0.38329716,112670.0,112660.0,0.2086822]
[1760162561955,0.01313,112680.0,112660.0,0.5694792]
[1760162562259,0.03562487,112680.0,112660.0,0.5694816]
[1760162562451,0.01313,112670.0,112660.0,0.5694816]
[1760162562655,0.05704485,112670.0,112660.0,0.12]
[1760162562858,0.41784485,112670.0,112660.0,0.12]
[1760162563261,0.02248485,112670.0,112660.0,0.9694822]
[1760162563663,0.37493,112680.0,112660.0,0.9694822]
[1760162563957,0.02347857,112680.0,112670.0,0.0886744]
[1760162564156,0.02347857,112680.0,112670.0,0.2086744]
[1760162564465,0.02347857,112680.0,112670.0,0.5694744]
[1760162564662,0.02347857,112680.0,112670.0,0.12]
[1760162564968,0.02347857,112680.0,112670.0,0.4808]
[1760162565462,0.02347857,112680.0,112670.0,0.5694744]
[1760162565666,0.03760857,112680.0,112670.0,0.12]
[1760162566161,0.03760857,112680.0,112670.0,0.4808]
[1760162566354,0.03660857,112680.0,112670.0,0.4808]
[1760162566552,0.03760857,112680.0,112670.0,0.4808]
[1760162566758,0.05903857,112680.0,112670.0,0.12]
[1760162567056,0.03760857,112680.0,112670.0,0.12]
[1760162567263,0.05903857,112680.0,112670.0,0.12]
[1760162567961,0.03760857,112680.0,112670.0,0.12]
[1760162568155,0.03760857,112680.0,112670.0,0.4808]
[1760162568658,0.03760857,112680.0,112670.0,0.12]
[1760162568958,0.05903857,112680.0,112670.0,0.12]
[1760162569163,0.41983857,112680.0,112670.0,0.12]
[1760162570058,0.82919069,112680.0,112670.0,0.12]
[1760162570563,0.41983857,112680.0,112670.0,0.12]
[1760162570866,0.05903857,112680.0,112670.0,0.12]
[1760162571163,0.03760857,112680.0,112670.0,0.12]
[1760162571759,0.42021857,112680.0,112670.0,0.12]
[1760162573164,0.39774,112680.0,112670.0,0.12]
[1760162573764,0.37593,112680.0,112670.0,0.12]
[1760162574065,0.01513,112680.0,112670.0,0.12]
[1760162574562,0.01519,112680.0,112670.0,0.2086744]
[1760162574760,0.037,112680.0,112670.0,0.12]
[1760162575260,0.05949648,112680.0,112670.0,0.12]
[1760162575466,0.42029632,112680.0,112670.0,0.12]
[1760162576164,0.82864844,112680.0,112670.0,0.12]
[1760162576564,0.80515212,112680.0,112670.0,0.12]
[1760162576763,1.29381862,112680.0,112670.0,0.12]
[1760162576966,1.3163241,112680.0,112670.0,0.12]
[1760162578970,0.035,112640.0,112630.0,0.1097344]
[1760162579167,0.3958,112640.0,112630.0,0.15103]
[1760162579466,0.01319,112650.0,112630.0,0.2509459]
[1760162579667,0.37399,112650.0,112630.0,0.2509459]
[1760162579862,0.3608,112640.0,112630.0,0.16224]
[1760162580069,0.37399,112650.0,112630.0,0.16224]
[1760162580366,0.3958,112640.0,112630.0,0.15103]
[1760162580568,0.80515212,112640.0,112630.0,0.15103]
[1760162580966,0.7958,112640.0,112630.0,0.13]
[1760162581170,0.37399,112640.0,112630.0,0.16224]
[1760162581369,0.37399,112650.0,112630.0,0.52304]
[1760162581565,0.37399,112650.0,112630.0,0.16224]
[1760162581767,0.3958,112640.0,112630.0,0.15103]
[1760162582869,0.484498,112640.0,112630.0,0.15103]
[1760162583174,0.3958,112640.0,112630.0,0.15103]
[1760162583473,1.29385012,112640.0,112630.0,0.10103]
[1760162583674,1.20515212,112640.0,112630.0,0.10103]
[1760162584365,1.31652764,112640.0,112630.0,0.10103]
[1760162584572,1.31652764,112640.0,112630.0,0.08]
[1760162585374,0.035,112610.0,112600.0,0.02103]
[1760162585574,0.78334212,112620.0,112600.0,0.07103]
[1760162585778,0.02181,112610.0,112600.0,0.07103]
[1760162586070,0.3608,112610.0,112600.0,0.13470397]
[1760162586271,0.3608,112630.0,112610.0,0.03224]
[1760162586480,0.37399,112630.0,112610.0,0.16224]
[1760162586970,0.3608,112620.0,112610.0,0.16224]
[1760162587366,0.3958,112620.0,112610.0,0.15103]
[1760162587570,0.80515212,112620.0,112610.0,0.15103]
[1760162587975,0.78334212,112630.0,112610.0,0.16224]
[1760162588279,0.78334212,112630.0,112610.0,0.16324]
[1760162588576,0.3608,112620.0,112610.0,0.16324]
[1760162588776,0.3608,112620.0,112610.0,0.16224]
[1760162588974,0.3608,112620.0,112610.0,0.16324]
[1760162589473,0.3608,112620.0,112610.0,0.16224]
[1760162590074,0.3958,112620.0,112610.0,0.15103]
[1760162590566,0.035,112620.0,112610.0,0.15103]
[1760162591275,0.3958,112620.0,112610.0,0.15103]
[1760162594072,0.38261,112620.0,112610.0,0.15103]
[1760162594276,0.3608,112620.0,112610.0,0.15103]
[1760162595071,0.3608,112630.0,112620.0,0.01121]
[1760162595268,0.3608,112630.0,112620.0,0.17386]
[1760162595468,0.38337,112630.0,112620.0,0.17386]
[1760162595671,0.80666212,112630.0,112620.0,0.16265]
[1760162595975,0.89536802,112630.0,112620.0,0.16265]
[1760162596377,1.29536802,112630.0,112620.0,0.16265]
[1760162597575,1.29536802,112630.0,112600.0,0.02265]
[1760162597576,0.1252353,112610.0,112600.0,0.02265]
[1760162597774,0.1252353,112610.0,112590.0,0.07961807]
[1760162597775,0.1252395,112600.0,112590.0,0.02265]
[1760162597975,0.89539802,112600.0,112590.0,0.01]
[1760162598675,1.29539802,112600.0,112590.0,0.01]
[1760162599075,1.29539802,112600.0,112590.0,0.011]
[1760162599882,1.29539802,112600.0,112590.0,0.001]
[1760162600082,1.29539802,112600.0,112590.0,0.011]
[1760162600083,0.8860459,112600.0,112590.0,0.011]
[1760162600282,1.29539802,112600.0,112590.0,0.011]
[1760162603282,0.0887374,112590.0,112580.0,0.07972515]
[1760162603484,0.89539952,112590.0,112580.0,0.01010708]
[1760162603683,0.89539952,112590.0,112580.0,0.00010708]
[1760162604283,1.29539952,112590.0,112580.0,0.00010708]
[1760162604479,1.29539952,112590.0,112580.0,0.00110708]
[1760162604882,1.40539952,112590.0,112580.0,0.00110708]
[1760162605087,1.29539952,112590.0,112580.0,0.00110708]
[1760162605387,0.1252632,112570.0,112560.0,0.07961807]
[1760162605689,0.1252632,112570.0,112560.0,0.08961807]
[1760162605690,1.25621532,112570.0,112560.0,0.08961807]
[1760162606289,1.25628066,112570.0,112560.0,0.11226807]
[1760162606485,1.25628066,112570.0,112560.0,0.08961807]
[1760162607086,1.25628066,112570.0,112560.0,0.09061807]
[1760162607286,1.25628066,112570.0,112560.0,0.11326807]
[1760162607487,1.2801446,112570.0,112560.0,0.03365]
[1760162607681,1.2801446,112570.0,112560.0,0.03465]
[1760162609393,1.25628066,112570.0,112560.0,0.03465]
[1760162610092,1.25728066,112570.0,112560.0,0.03365]
[1760162610793,1.25728066,112570.0,112560.0,0.03265]
[1760162617594,0.72266534,112570.0,112560.0,0.03265]
[1760162617799,0.81141854,112570.0,112560.0,0.03265]
[1760162618294,0.83399464,112570.0,112560.0,0.03265]
[1760162621599,0.84768464,112570.0,112560.0,0.03265]
[1760162625294,0.87154943,112570.0,112560.0,0.03265]
[1760162625488,1.62071296,112570.0,112560.0,0.03265]
[1760162625689,1.62071296,112570.0,112560.0,0.01]
[1760162626092,0.1252268,112540.0,112530.0,0.02174]
[1760162626293,0.48613893,112540.0,112530.0,0.04174]
[1760162627100,0.48613893,112540.0,112530.0,0.02]
[1760162627491,0.88613893,112540.0,112530.0,0.001]
[1760162628191,0.91003415,112540.0,112530.0,0.001]
[1760162628396,0.1252505,112510.0,112500.0,0.0218423]
[1760162628690,0.4861483,112510.0,112500.0,0.0418423]
[1760162629395,0.4861483,112510.0,112500.0,0.0101023]
[1760162630100,0.3973478,112510.0,112500.0,0.0318423]
[1760162630300,0.3973478,112510.0,112500.0,0.0338423]
[1760162630801,0.4861483,112510.0,112500.0,0.0338423]
[1760162632998,0.3973478,112510.0,112500.0,0.0338423]
[1760162633198,0.3973478,112510.0,112500.0,0.0121023]
[1760162633396,0.4861483,112510.0,112500.0,0.0353623]
[1760162633792,0.4861483,112510.0,112500.0,0.0121023]
[1760162634200,0.8861483,112510.0,112500.0,0.0021023]
[1760162634402,0.91007659,112510.0,112500.0,0.0021023]
[1760162636605,0.91007659,112510.0,112500.0,0.0011023]
[1760162636807,0.91007659,112510.0,112500.0,0.0001023]
[1760162637105,0.91007659,112510.0,112500.0,0.0233623]
[1760162638207,0.91007659,112510.0,112500.0,0.0001023]
[1760162638600,0.91007659,112510.0,112500.0,0.0233623]
[1760162638801,0.91007659,112510.0,112500.0,0.0001023]
[1760162639711,1.25924012,112510.0,112500.0,0.0001023]
[1760162641505,0.1236455,112480.0,112470.0,0.02326]
[1760162641711,0.39562,112480.0,112470.0,0.07326]
[1760162642602,0.39569394,112480.0,112470.0,0.07326]